bitfinex-derivatives/quotes_ETHF0:USTF0_20241129
["timestamp","ask_amount","ask_price","bid_price","bid_amount"]
[1732838400943,4.36845824,3580.5,3580.3,2.0774]
[1732838401142,4.36845824,3580.5,3580.4,0.14651623]
[1732838401439,4.36845824,3580.5,3580.4,3.95651623]
[1732838401642,0.41904383,3580.5,3580.4,3.95651623]
[1732838402339,4.78750207,3580.6,3580.4,3.95651623]
[1732838402539,0.41904383,3580.5,3580.4,3.81]
[1732838402736,4.36845824,3580.5,3580.4,3.81]
[1732838402935,0.41904383,3580.5,3580.4,3.81]
[1732838403133,5.4605728,3580.6,3580.4,3.81]
[1732838403332,5.4605728,3580.6,3580.5,0.1465572]
[1732838404243,5.4605728,3580.6,3580.5,0.14658818]
[1732838404244,4.88543233,3580.6,3580.5,0.14658818]
[1732838405933,4.88543233,3580.6,3580.5,3.37658818]
[1732838406543,5.45959674,3580.6,3580.5,0.14658818]
[1732838406842,3.27596963,3580.6,3580.5,0.14658818]
[1732838407044,9.76048736,3581.5,3580.5,0.14658818]
[1732838407045,3.27596963,3580.7,3580.5,0.14658818]
[1732838407241,3.27596963,3580.8,3580.6,4.14978818]
[1732838407547,3.27596963,3580.8,3580.7,0.14658818]
[1732838407745,3.27596963,3580.8,3580.6,4.0032]
[1732838407944,3.27596963,3580.8,3580.7,0.14662484]
[1732838408240,3.27596963,3580.9,3580.7,4.28662484]
[1732838408439,3.27596963,3580.9,3580.8,0.14662484]
[1732838408946,3.27596963,3581.0,3580.8,0.14662484]
[1732838409139,3.27596963,3581.1,3580.9,0.8103]
[1732838409337,3.69493716,3581.2,3581.0,3.35442484]
[1732838409537,3.69493716,3581.2,3580.2,6.57603126]
[1732838409538,3.62676819,3581.1,3580.2,7.59182084]
[1732838409735,4.36789593,3580.3,3580.1,0.8103]
[1732838409938,4.36789593,3580.3,3579.3,7.59182084]
[1732838409939,5.58056412,3580.2,3579.8,0.7954]
[1732838410136,3.27497135,3579.9,3579.8,0.7954]
[1732838410746,0.41910168,3580.1,3579.8,0.7954]
[1732838410747,3.27497135,3580.0,3579.8,0.94185433]
[1732838411044,3.27497135,3579.9,3579.8,0.7954]
[1732838411347,0.4191036,3579.9,3579.8,0.14646904]
[1732838411539,4.78560587,3579.9,3579.8,0.14646904]
[1732838411940,4.36650227,3579.9,3579.8,0.14646904]
[1732838412146,4.78560587,3579.9,3579.8,2.08646904]
[1732838412342,4.36650227,3579.9,3579.8,2.08646904]
[1732838412546,4.36650227,3579.9,3579.8,2.91646904]
[1732838412746,4.36650227,3579.9,3579.8,0.14646904]
[1732838412939,7.16010227,3579.9,3579.8,0.14646904]
[1732838413144,7.67700392,3579.9,3579.8,0.14646904]
[1732838413647,7.67700392,3579.9,3579.8,0.39287482]
[1732838414249,7.67700392,3579.9,3579.8,3.18647482]
[1732838414250,0.4191036,3579.9,3579.8,3.18647482]
[1732838414548,3.27657216,3580.1,3579.8,3.18647482]
[1732838414749,3.27657216,3579.9,3579.8,0.17480639]
[1732838415045,10.12412355,3580.0,3579.8,0.40032543]
[1732838415251,10.12412355,3580.0,3579.1,3.2078]
[1732838415252,4.84942355,3579.9,3579.4,0.17480639]
[1732838415548,4.84942355,3579.9,3579.1,3.2078]
[1732838415549,4.36789274,3579.7,3579.5,0.57505593]
[1732838415747,4.36789274,3579.7,3579.6,0.40024954]
[1732838415942,4.78704557,3579.7,3579.6,0.40024954]
[1732838416142,3.27739767,3579.7,3579.6,3.36865593]
[1732838416346,3.27739767,3579.7,3579.6,4.17685593]
[1732838416539,3.27739767,3579.7,3579.6,4.82574954]
[1732838417451,3.27739767,3579.8,3579.6,4.82574954]
[1732838417654,3.27739767,3579.8,3579.6,1.6319]
[1732838417850,3.27739767,3579.8,3579.7,0.40017654]
[1732838418467,0.41911348,3579.8,3579.7,0.40017654]
[1732838418649,4.36789274,3579.9,3579.7,0.5749356]
[1732838418844,4.36789274,3579.9,3579.8,0.5749356]
[1732838419244,4.36789274,3579.9,3579.8,3.19377654]
[1732838419245,3.69467508,3579.9,3579.8,3.19377654]
[1732838419452,3.2755616,3579.9,3579.8,3.19377654]
[1732838420049,3.2755616,3580.0,3579.8,3.19377654]
[1732838420249,3.2755616,3580.0,3579.9,3.36170347]
[1732838420450,3.2755616,3580.1,3579.9,7.20127654]
[1732838420656,3.2755616,3580.1,3580.0,0.15390347]
[1732838420855,3.2755616,3580.1,3580.0,3.19377654]
[1732838421560,3.2755616,3580.2,3580.0,3.19377654]
[1732838421850,3.2755616,3580.4,3580.1,0.40017654]
[1732838422051,3.2755616,3580.6,3580.3,3.2078]
[1732838422252,3.69457876,3580.5,3580.4,0.40017654]
[1732838422453,1.27971716,3580.5,3580.4,0.40017654]
[1732838422649,5.6476099,3580.5,3580.4,0.57489121]
[1732838422852,5.6476099,3580.5,3580.4,0.40017654]
[1732838423049,9.11336593,3580.5,3580.4,0.40017654]
[1732838423247,5.70961231,3580.5,3580.4,0.40017654]
[1732838423447,11.16992431,3580.5,3580.4,0.40017654]
[1732838424254,10.30922431,3580.5,3580.4,0.40017654]
[1732838424553,3.69559195,3580.5,3580.4,3.19297654]
[1732838424753,2.5036,3581.0,3580.4,3.19297654]
[1732838424754,3.27657479,3580.6,3580.4,3.19297654]
[1732838424953,3.27657479,3580.6,3580.5,0.40017654]
[1732838425155,3.27705368,3580.6,3580.5,0.40017654]
[1732838425353,3.27705368,3580.6,3580.5,3.19297654]
[1732838425855,3.27705368,3580.7,3580.5,3.19297654]
[1732838426156,3.27705368,3580.9,3580.6,0.40017654]
[1732838426348,3.27705368,3581.0,3580.8,3.2078]
[1732838426554,3.27705368,3581.0,3580.9,1.25637654]
[1732838426957,3.27705368,3581.0,3580.9,4.04917654]
[1732838427656,3.27705368,3581.1,3580.9,4.04917654]
[1732838427856,3.27705368,3581.2,3581.0,0.40017654]
[1732838428054,3.27705368,3581.3,3581.1,0.40017654]
[1732838428257,3.27705368,3581.3,3581.2,3.78252929]
[1732838428458,3.27705368,3581.4,3581.2,3.78252929]
[1732838428654,3.69597443,3581.5,3581.3,3.36672929]
[1732838428957,2.67141368,3582.1,3581.4,0.57465711]
[1732838429158,4.36845494,3582.5,3582.0,3.38229177]
[1732838429458,3.2078,3582.3,3582.1,0.40017654]
[1732838429754,11.9332884,3582.2,3582.0,3.2078]
[1732838429956,0.7847,3582.2,3582.1,0.39929462]
[1732838430162,4.36425528,3582.6,3582.1,1.24829462]
[1732838430453,1.6437,3582.7,3582.6,0.27908]
[1732838430653,1.6437,3582.7,3582.6,0.6780288]
[1732838430849,1.6437,3582.7,3582.6,0.27908]
[1732838431050,1.6437,3582.7,3582.6,0.67804349]
[1732838431455,0.7993,3582.8,3582.6,0.39896349]
[1732838431755,0.7993,3582.8,3582.7,0.67803349]
[1732838433351,0.7993,3582.8,3582.7,0.43250694]
[1732838433963,1.07836,3582.8,3582.7,0.43216348]
[1732838434666,0.7993,3582.8,3582.7,0.43216348]
[1732838434855,1.07836,3582.8,3582.7,0.43216348]
[1732838436462,0.7993,3582.8,3582.7,0.43216348]
[1732838438663,1.7268,3583.1,3582.7,0.15309348]
[1732838438859,1.7268,3583.1,3582.8,0.15309348]
[1732838438860,2.5381,3583.1,3582.8,0.15309348]
[1732838439058,0.27905,3583.0,3582.9,0.15309348]
[1732838439263,0.27906,3582.9,3582.8,0.27906]
[1732838439458,0.27906,3582.9,3582.8,0.59177764]
[1732838439669,0.27906,3582.9,3582.8,0.43177764]
[1732838440563,2.5381,3583.1,3583.0,0.27905]
[1732838441860,2.5381,3583.1,3583.0,0.43170777]
[1732838442069,1.7268,3583.1,3583.0,0.43170777]
[1732838442261,0.27902,3583.4,3583.3,0.27902]
[1732838443269,0.27903,3583.3,3583.2,0.27903]
[1732838443569,0.27903,3583.3,3583.2,0.43167969]
[1732838445773,2.3919,3583.5,3583.2,0.43167969]
[1732838445774,2.3919,3583.5,3583.4,0.27902]
[1732838445968,2.3919,3583.5,3583.4,0.43166969]
[1732838447265,2.67091,3583.5,3583.4,0.43166969]
[1732838447566,2.3919,3583.5,3583.4,0.76807491]
[1732838447766,0.27898,3584.0,3583.9,0.27897]
[1732838448070,1.13868,3584.0,3583.9,0.43179045]
[1732838449275,0.8597,3584.0,3583.9,3.39647081]
[1732838450760,1.13867,3584.0,3583.9,3.39647081]
[1732838452967,1.13867,3584.0,3583.2,0.17345571]
[1732838452968,6.8579,3584.0,3583.2,0.17345571]
[1732838453170,0.27902,3583.4,3583.3,0.52391942]
[1732838453366,0.27902,3583.4,3583.3,0.24489942]
[1732838453569,0.6975,3583.7,3583.2,0.27903]
[1732838453867,0.6975,3583.7,3582.9,3.2078]
[1732838453868,0.788,3583.3,3583.1,0.17386498]
[1732838454075,0.27904,3583.1,3583.0,0.27905]
[1732838454370,0.788,3583.3,3583.1,0.27904]
[1732838454371,0.27904,3583.2,3583.1,0.27904]
[1732838454566,0.27904,3583.2,3583.1,0.69764524]
[1732838455068,0.27904,3583.2,3583.1,0.52362148]
[1732838456268,1.10804,3583.2,3583.1,0.52362148]
[1732838456469,1.10804,3583.2,3583.1,0.59782892]
[1732838456980,0.27904,3583.2,3583.1,0.59782892]
[1732838457170,0.8532,3583.6,3583.1,1.62878892]
[1732838457365,0.27902,3583.5,3583.4,0.27901]
[1732838457564,0.27902,3583.5,3583.4,0.59779892]
[1732838457765,0.829,3583.8,3583.4,6.93918892]
[1732838457968,1.10799,3583.8,3583.7,0.27899]
[1732838458167,1.10799,3583.8,3583.7,4.46357148]
[1732838458378,1.10799,3583.8,3583.7,4.21899]
[1732838458577,1.10799,3583.8,3583.7,4.53095561]
[1732838459371,1.10799,3583.8,3583.7,4.25196561]
[1732838459677,3.89839,3583.8,3583.7,0.31196561]
[1732838460073,3.6194,3583.8,3582.9,3.2078]
[1732838460270,0.27905,3583.0,3582.9,4.1078]
[1732838460479,0.27913,3581.9,3581.8,3.2078]
[1732838460668,0.27916,3581.6,3581.5,0.27916]
[1732838460874,3.2078,3582.1,3580.8,4.16764625]
[1732838461175,1.6345,3582.0,3580.9,1.51224]
[1732838461481,0.27915,3581.8,3581.7,0.27915]
[1732838461776,0.27915,3581.7,3581.2,3.2078]
[1732838461976,0.27915,3581.8,3581.3,0.27918]
[1732838462277,1.6345,3582.0,3581.3,4.01]
[1732838462670,0.27915,3581.8,3581.6,0.27915]
[1732838463178,1.6345,3582.0,3581.6,0.27915]
[1732838463372,0.27915,3581.7,3581.6,0.27915]
[1732838463680,0.27915,3581.7,3581.5,0.27916]
[1732838463883,0.27915,3581.7,3581.3,0.8234]
[1732838464181,0.27915,3581.7,3581.6,0.27916]
[1732838464382,1.6345,3582.0,3581.6,0.27915]
[1732838464674,1.6345,3582.0,3581.3,0.8234]
[1732838464978,2.87221709,3582.4,3581.3,0.8234]
[1732838464979,2.17446709,3582.7,3581.6,3.2078]
[1732838465272,0.27906,3582.9,3582.8,0.27906]
[1732838465471,0.8539,3583.0,3582.5,3.2078]
[1732838465870,0.27907,3582.8,3582.7,0.27907]
[1732838466074,0.27906,3582.9,3582.8,0.27906]
[1732838466574,3.2078,3583.1,3582.5,3.2078]
[1732838466575,3.2078,3583.1,3583.0,0.27905]
[1732838466776,3.48684,3583.1,3583.0,0.27905]
[1732838466979,3.2078,3583.1,3583.0,0.27905]
[1732838467171,6.83188736,3584.4,3583.4,0.27901]
[1732838467172,0.27901,3583.5,3583.4,0.27901]
[1732838467374,6.19506709,3583.6,3583.3,0.27902]
[1732838467375,0.27902,3583.4,3583.3,0.27902]
[1732838467876,0.27903,3583.3,3583.2,0.27903]
[1732838468078,6.19506709,3583.6,3582.5,4.0165]
[1732838468372,0.27904,3583.2,3583.1,0.27904]
[1732838469576,0.27904,3583.1,3583.0,0.27904]
[1732838471484,2.45350709,3583.1,3583.0,0.27904]
[1732838471786,2.17446709,3583.5,3583.4,0.27902]
[1732838471975,2.17446709,3583.7,3583.4,3.01]
[1732838472282,0.27898,3583.9,3583.8,0.27899]
[1732838472485,0.27899,3583.8,3583.7,0.27899]
[1732838472782,0.41868554,3583.8,3583.5,0.828]
[1732838472980,2.18585369,3583.6,3583.5,1.10701]
[1732838473183,0.27901,3583.6,3583.5,0.27901]
[1732838473376,0.69770787,3583.6,3583.5,0.27901]
[1732838473677,0.41869787,3583.6,3583.5,0.27901]
[1732838473985,0.69769787,3583.6,3583.5,0.27901]
[1732838474185,0.41869787,3583.6,3583.5,0.27901]
[1732838474784,0.279,3583.7,3583.5,0.27901]
[1732838474785,5.06195315,3583.7,3583.5,0.27901]
[1732838474977,0.41869787,3583.6,3583.5,0.27901]
[1732838475583,0.69769787,3583.6,3583.5,0.27901]
[1732838475881,0.41869787,3583.6,3583.5,0.27901]
[1732838476082,0.41869396,3583.6,3583.5,0.27901]
[1732838476484,0.279,3583.7,3583.6,0.279]
[1732838476674,0.69768703,3583.7,3583.6,0.279]
[1732838478789,0.69768703,3583.7,3583.1,0.8713]
[1732838478790,0.27901,3583.6,3583.5,0.27901]
[1732838478983,0.69769703,3583.6,3583.5,0.27901]
[1732838479489,0.27903,3583.3,3583.2,0.27902]
[1732838479682,6.33346528,3583.5,3583.4,0.27902]
[1732838479983,6.75219377,3583.5,3583.4,0.27902]
[1732838480485,0.41872849,3583.5,3583.4,0.27902]
[1732838480683,5.06198377,3583.6,3583.5,0.27901]
[1732838480884,4.78296749,3583.6,3583.5,0.27901]
[1732838481076,0.41871221,3583.6,3583.5,0.27901]
[1732838481282,4.78296749,3583.6,3583.0,0.828]
[1732838481584,2.18794675,3583.2,3583.1,0.27904]
[1732838481775,2.18794675,3583.2,3583.1,4.48904]
[1732838481980,2.46697675,3583.3,3583.2,0.27903]
[1732838482180,0.27903,3583.3,3583.2,0.27903]
[1732838483289,1.10363,3583.4,3583.3,0.27903]
[1732838483584,1.52236764,3583.4,3583.3,0.27903]
[1732838483789,0.27906,3582.9,3582.8,0.27906]
[1732838483984,2.46726581,3582.9,3582.8,0.27906]
[1732838484285,2.18820581,3582.9,3582.8,0.27906]
[1732838484986,2.18820581,3583.0,3582.9,0.27906]
[1732838485386,2.18820581,3583.1,3583.0,0.27905]
[1732838485587,0.27904,3583.1,3583.0,0.27905]
[1732838487085,1.68,3583.3,3582.8,3.2078]
[1732838487286,0.27904,3583.2,3583.1,0.27904]
[1732838487488,0.69779257,3583.2,3583.1,0.27904]
[1732838488082,0.41875257,3583.2,3582.8,3.2078]
[1732838488391,1.68,3583.3,3582.8,0.27906]
[1732838488392,2.46552321,3582.9,3582.8,0.27906]
[1732838489088,2.18646321,3583.0,3582.7,0.7877]
[1732838489289,0.27906,3583.0,3582.9,0.27906]
[1732838489689,3.55874394,3583.1,3583.0,0.27905]
[1732838489890,3.97749503,3583.1,3583.0,0.27905]
[1732838490193,3.69844906,3583.1,3583.0,0.27905]
[1732838490494,0.27904,3583.1,3583.0,0.27905]
[1732838490690,3.55874394,3583.1,3583.0,0.27905]
[1732838492890,3.9774974,3583.1,3583.0,0.27905]
[1732838493790,3.27970394,3583.1,3583.0,0.27905]
[1732838494094,3.27970394,3583.1,3582.8,3.2078]
[1732838494095,3.27970394,3583.2,3583.1,0.27904]
[1732838494588,3.55873394,3583.2,3583.1,0.27904]
[1732838494797,3.97746908,3583.2,3583.1,0.27904]
[1732838495188,3.55873394,3583.2,3583.1,0.27904]
[1732838495591,3.97748343,3583.2,3583.1,0.27904]
[1732838496498,0.69777949,3583.2,3583.1,0.27904]
[1732838499798,5.06203477,3583.2,3583.1,0.27904]
[1732838500100,5.06204463,3583.2,3583.1,0.27904]
[1732838500300,0.69778935,3583.2,3583.1,0.27904]
[1732838501199,5.06204463,3583.2,3583.1,0.27904]
[1732838501399,0.69778935,3583.2,3583.1,0.27904]
[1732838501798,5.06204463,3583.2,3583.1,0.27904]
[1732838501994,0.69778935,3583.2,3583.1,0.27904]
[1732838502704,5.06204463,3583.2,3583.1,0.27904]
[1732838502906,4.78301463,3583.2,3582.7,0.7877]
[1732838503108,2.18640705,3582.8,3582.7,2.59677]
[1732838504400,2.46546705,3582.9,3582.8,0.27906]
[1732838504607,2.46546705,3582.9,3582.8,1.75906]
[1732838505505,0.27906,3582.9,3582.8,1.75906]
[1732838506001,0.27906,3582.9,3582.3,0.69775]
[1732838506002,6.07081057,3582.9,3581.9,4.38402084]
[1732838506202,0.27912,3582.1,3582.0,0.7973]
[1732838506505,0.27913,3582.0,3581.9,0.7917]
[1732838506705,0.27914,3581.8,3581.7,3.2078]
[1732838506908,2.46552024,3581.8,3581.7,3.2078]
[1732838507308,2.18638024,3581.8,3581.7,3.48695]
[1732838507606,3.55875057,3581.9,3581.8,0.27914]
[1732838507801,3.55875057,3581.9,3581.8,2.63558324]
[1732838508003,3.97764306,3581.9,3581.8,2.63558324]
[1732838509307,0.69803249,3581.9,3581.8,2.63558324]
[1732838510103,0.6980361,3581.9,3581.8,2.63558324]
[1732838510306,0.6980361,3581.9,3581.8,2.35644324]
[1732838512109,3.97848731,3581.9,3581.8,2.35644324]
[1732838512498,3.97848731,3581.9,3581.8,2.63558324]
[1732838512907,3.97848731,3581.9,3581.8,2.35622667]
[1732838513306,0.6980361,3581.9,3581.8,0.14622667]
[1732838515012,0.69805782,3581.9,3581.8,0.14622667]
[1732838516116,3.97391454,3581.9,3581.8,0.14622667]
[1732838516711,1.5175,3582.2,3581.8,4.47822667]
[1732838516712,3.27585672,3582.0,3581.8,4.47822667]
[1732838517008,5.460312,3582.4,3582.0,0.27913]
[1732838517009,2.18397201,3582.4,3582.0,0.27913]
[1732838517206,2.18397201,3582.8,3582.3,3.2078]
[1732838517406,2.18397201,3582.8,3582.7,0.27907]
[1732838517606,2.18397201,3582.9,3582.8,0.27906]
[1732838517816,2.18397201,3583.0,3582.9,0.27906]
[1732838518108,2.18397201,3583.1,3583.0,0.27905]
[1732838518301,2.18397201,3583.1,3583.0,4.06527667]
[1732838518712,2.46301201,3583.1,3583.0,4.06527667]
[1732838518915,0.27904,3583.1,3583.0,0.14622667]
[1732838519211,3.55489672,3583.1,3583.0,0.42527667]
[1732838519910,3.55489672,3583.2,3583.0,4.45622667]
[1732838520104,3.27585672,3583.2,3583.1,0.27904]
[1732838520309,2.18483529,3583.4,3583.2,0.27903]
[1732838520505,3.27585672,3584.0,3583.3,1.14222667]
[1732838520711,3.69449818,3584.1,3583.8,3.2078]
[1732838520906,0.8032,3584.7,3583.8,3.2078]
[1732838520907,3.27585672,3584.2,3584.1,0.27896]
[1732838521114,3.27585672,3584.3,3584.2,0.27896]
[1732838521512,3.27585672,3584.3,3584.2,0.42518667]
[1732838521910,3.55479672,3584.4,3584.3,0.27895]
[1732838522111,3.55479672,3584.4,3584.3,0.1459606]
[1732838522415,10.36165528,3584.4,3583.0,3.2078]
[1732838522614,10.36165528,3584.4,3582.7,5.22972084]
[1732838522615,3.2078,3583.5,3582.7,0.8308]
[1732838522814,3.27666662,3583.3,3582.2,0.69778]
[1732838523014,3.69540307,3583.2,3582.5,3.2078]
[1732838523317,3.27666662,3583.2,3582.5,6.0278]
[1732838523504,3.27666662,3583.0,3582.6,0.41793536]
[1732838523706,0.27907,3582.7,3582.6,0.24473129]
[1732838523907,0.27907,3582.7,3582.4,0.45229407]
[1732838523908,0.27909,3582.6,3582.4,0.45229407]
[1732838524324,0.27909,3582.6,3582.5,0.24473796]
[1732838525015,4.36425528,3583.0,3582.5,0.24473796]
[1732838525016,3.27666662,3583.0,3582.5,10.48373796]
[1732838525211,3.27666662,3583.2,3583.1,0.27904]
[1732838525417,3.55568662,3583.4,3583.2,0.27903]
[1732838525715,3.27666662,3583.4,3583.3,0.52376796]
[1732838525920,3.2078,3583.5,3583.4,0.27902]
[1732838525921,6.48446662,3583.5,3583.4,0.27902]
[1732838526218,3.27666662,3583.6,3583.5,0.27901]
[1732838526413,3.27666662,3583.6,3583.5,1.54901]
[1732838526618,3.27666662,3583.7,3583.6,0.279]
[1732838526915,3.27666662,3583.7,3583.6,0.52373796]
[1732838527512,3.69535983,3583.7,3583.6,0.52373796]
[1732838528012,3.27666662,3583.7,3583.6,0.52373796]
[1732838528421,3.27666662,3583.7,3583.6,0.5236599]
[1732838528619,3.27666662,3583.8,3583.7,0.27899]
[1732838528806,3.27666662,3583.8,3583.7,4.4636499]
[1732838529009,6.48446662,3584.0,3583.7,6.9750599]
[1732838529212,6.48446662,3584.0,3583.9,0.27898]
[1732838529418,3.2078,3584.0,3583.9,0.5236399]
[1732838529617,3.27666662,3584.1,3584.0,0.27897]
[1732838529822,3.27666662,3584.2,3584.1,0.27896]
[1732838530120,3.27666662,3584.2,3584.1,0.5236199]
[1732838530313,3.55561662,3584.3,3584.2,0.27896]
[1732838530514,0.27895,3584.3,3584.2,0.5236199]
[1732838531214,3.27666662,3584.4,3584.3,0.27895]
[1732838531514,4.38110662,3584.5,3584.4,0.27894]
[1732838531714,4.38110662,3584.5,3583.8,4.74016]
[1732838531715,4.79972353,3584.5,3583.8,4.74016]
[1732838531915,4.38110662,3584.5,3584.3,0.27894]
[1732838532212,4.10216662,3584.5,3584.4,0.27894]
[1732838532523,4.79971783,3584.5,3584.4,0.27894]
[1732838532722,4.38109662,3584.5,3584.4,0.27894]
[1732838532915,4.38109662,3584.5,3584.3,0.27894]
[1732838532916,4.38110662,3584.5,3584.3,0.27894]
[1732838533115,4.10216662,3584.5,3584.3,0.27894]
[1732838533417,4.10216662,3584.5,3583.8,5.0357]
[1732838533418,0.27894,3584.4,3583.8,5.0357]
[1732838533623,1.10444,3584.5,3584.3,0.27894]
[1732838533823,0.27894,3584.4,3584.3,0.27894]
[1732838534015,0.27894,3584.4,3584.2,0.27895]
[1732838534323,0.27894,3584.4,3583.8,5.0357]
[1732838534324,4.10216662,3584.5,3583.8,5.0357]
[1732838534521,0.27896,3584.3,3584.1,0.27896]
[1732838534819,4.10216662,3584.5,3584.2,0.43155682]
[1732838535027,0.27894,3584.4,3584.3,0.15260682]
[1732838535217,4.10216662,3584.5,3584.3,0.15260682]
[1732838535413,0.8255,3584.5,3584.4,0.15260682]
[1732838535617,1.10443,3584.5,3584.4,0.15260682]
[1732838537120,0.8255,3584.5,3584.0,0.27897]
[1732838537324,0.27895,3584.3,3584.1,0.67564559]
[1732838537523,0.27895,3584.3,3584.2,0.15255905]
[1732838537823,0.27895,3584.3,3584.2,0.43151905]
[1732838538320,0.27895,3584.3,3584.1,0.27896]
[1732838538515,0.27895,3584.3,3584.2,0.15256644]
[1732838542327,0.27895,3584.3,3584.2,0.39692638]
[1732838545135,0.27895,3584.3,3584.2,0.39753679]
[1732838547032,0.27895,3584.3,3584.2,0.67649679]
[1732838547727,0.27894,3584.4,3584.3,0.27894]
[1732838547935,0.27894,3584.4,3584.3,0.67647679]
[1732838548525,0.27894,3584.4,3584.3,0.67748108]
[1732838548838,0.27894,3584.4,3584.3,0.39852527]
[1732838549430,0.27894,3584.4,3584.3,0.67747527]
[1732838551939,0.27894,3584.5,3584.4,0.27893]
[1732838552233,3.2078,3584.6,3584.4,4.20852527]
[1732838552429,1.12411,3584.8,3584.5,0.39852527]
[1732838552634,1.12411,3584.8,3584.7,0.27892]
[1732838552839,1.12411,3584.8,3584.7,0.67744527]
[1732838553027,1.12411,3584.8,3584.7,0.39852527]
[1732838553834,1.12411,3584.8,3584.7,0.67744527]
[1732838554535,7.19037662,3584.8,3584.7,0.15326831]
[1732838554736,7.19037662,3584.8,3583.9,0.17355893]
[1732838554737,0.69737,3584.4,3583.9,0.17355893]
[1732838554934,0.69747,3583.9,3583.2,3.2078]
[1732838555133,0.69747,3583.9,3583.1,1.6172]
[1732838555134,3.2078,3583.6,3583.1,1.6172]
[1732838555333,0.27903,3583.3,3583.1,4.1072]
[1732838555531,0.27903,3583.2,3583.1,0.8129]
[1732838555743,0.27903,3583.2,3582.8,3.2078]
[1732838555744,0.27904,3583.1,3582.9,0.27905]
[1732838556035,0.27904,3583.2,3583.0,0.27904]
[1732838556230,0.27904,3583.2,3583.1,0.27904]
[1732838556732,1.6822,3583.5,3582.8,3.2078]
[1732838556938,0.27904,3583.2,3583.1,0.27904]
[1732838557636,2.7912,3583.2,3582.8,3.2078]
[1732838557834,1.6822,3583.5,3582.8,3.48686]
[1732838557835,0.27906,3582.9,3582.8,3.48686]
[1732838558035,0.27905,3583.0,3582.8,3.48686]
[1732838558235,5.64946204,3583.5,3582.8,3.2078]
[1732838558436,0.27904,3583.1,3582.9,0.27905]
[1732838558632,0.27905,3583.1,3582.9,0.27905]
[1732838558837,4.95192204,3583.5,3582.8,3.2078]
[1732838559342,0.27905,3583.0,3582.8,3.48686]
[1732838560137,0.27906,3582.9,3582.8,3.2078]
[1732838560342,0.27906,3582.9,3582.6,0.8129]
[1732838560646,0.27906,3582.9,3582.7,0.27907]
[1732838560941,0.27906,3582.9,3582.8,0.27906]
[1732838561244,0.27905,3583.0,3582.8,0.27906]
[1732838561445,0.27904,3583.1,3582.8,0.27906]
[1732838561649,6.47752204,3583.2,3582.6,0.8129]
[1732838561836,6.47752204,3583.2,3582.9,0.27905]
[1732838562043,0.27905,3583.0,3582.9,0.27905]
[1732838562243,0.27905,3583.0,3582.8,0.27906]
[1732838562441,3.26972204,3583.1,3582.8,0.27906]
[1732838562655,0.27905,3583.0,3582.8,0.27906]
[1732838563147,0.27905,3583.0,3582.9,0.27906]
[1732838563448,0.27905,3583.0,3582.8,0.27906]
[1732838563646,0.27905,3583.0,3582.9,0.858]
[1732838564147,0.27905,3583.0,3582.9,1.13706]
[1732838564947,0.27904,3583.1,3583.0,0.27905]
[1732838565343,3.26972204,3583.1,3582.9,0.858]
[1732838565546,0.27905,3583.0,3582.9,4.93705]
[1732838566649,0.27905,3583.0,3582.9,5.08066993]
[1732838568855,0.27905,3583.0,3582.9,4.80161993]
[1732838569649,0.27905,3583.0,3582.9,3.94361993]
[1732838570048,3.48685,3583.0,3582.9,0.14361993]
[1732838570256,6.69684708,3583.0,3582.9,0.14361993]
[1732838570650,10.98756664,3583.0,3582.9,0.14361993]
[1732838571051,6.27805,3583.0,3582.9,0.14361993]
[1732838571251,0.2791,3582.3,3582.2,0.8633]
[1732838571459,0.2791,3582.3,3582.2,0.14360229]
[1732838571859,3.55507367,3582.3,3582.2,0.14360229]
[1732838572061,4.39337367,3582.3,3582.2,0.14360229]
[1732838572563,1.1174,3582.3,3582.2,0.14360229]
[1732838573366,7.60343083,3582.3,3582.2,0.14360229]
[1732838573569,7.60346714,3582.3,3582.2,0.14360229]
[1732838574364,7.60346714,3582.3,3582.2,0.14349289]
[1732838574568,3.68929482,3582.3,3581.6,4.0711]
[1732838574858,4.3679649,3582.5,3582.4,0.2791]
[1732838574859,3.2703918,3582.5,3582.4,0.2791]
[1732838575054,3.2078,3582.6,3582.5,0.27909]
[1732838575055,6.4781918,3582.6,3582.5,0.27909]
[1732838575255,3.2703918,3583.0,3582.9,0.27906]
[1732838575459,5.739332,3583.4,3582.9,0.27906]
[1732838575460,3.2703918,3583.4,3582.9,0.14348364]
[1732838575665,3.2703918,3583.5,3583.0,0.14348364]
[1732838575970,0.27902,3583.4,3583.1,0.14348364]
[1732838576261,0.27902,3583.4,3583.2,0.14348364]
[1732838576461,3.2703918,3583.5,3583.3,0.14343601]
[1732838576659,5.57792778,3583.5,3582.6,0.8474]
[1732838576862,3.68996194,3583.4,3582.7,0.84113553]
[1732838577162,0.7912,3583.5,3582.7,0.84113553]
[1732838577163,3.27119906,3583.5,3583.4,0.27902]
[1732838577359,6.75799906,3583.6,3583.4,0.14344553]
[1732838577560,6.75799906,3583.6,3583.5,0.27901]
[1732838577561,3.27119906,3583.6,3583.5,0.27901]
[1732838577760,3.55019906,3583.7,3583.6,0.279]
[1732838577966,3.68991703,3583.7,3583.5,0.27901]
[1732838578167,0.279,3583.6,3583.4,0.27902]
[1732838578372,0.279,3583.6,3583.5,0.14349308]
[1732838578663,3.27119906,3583.7,3582.9,3.90545]
[1732838578967,0.27901,3583.6,3583.4,0.27901]
[1732838579163,0.27901,3583.6,3583.5,0.14349477]
[1732838579765,3.55020906,3583.6,3583.5,0.14349477]
[1732838580261,3.27119906,3583.6,3583.5,0.42250477]
[1732838580467,3.27119906,3583.7,3583.6,0.279]
[1732838580780,3.27119906,3584.0,3583.9,0.27898]
[1732838581072,4.3679649,3584.2,3584.0,0.27897]
[1732838581073,3.55015906,3584.2,3584.0,0.27897]
[1732838581364,0.27897,3584.1,3583.9,0.27897]
[1732838581565,3.27119906,3584.2,3584.0,0.42253582]
[1732838581566,3.55015906,3584.2,3584.0,0.42253582]
[1732838581762,3.55015906,3584.2,3584.1,0.14356582]
[1732838583360,3.96881145,3584.2,3584.1,0.14356582]
[1732838583660,5.9982,3584.2,3583.0,0.991]
[1732838583862,3.2078,3583.6,3583.3,0.27902]
[1732838584068,3.69124997,3583.6,3583.4,0.14358188]
[1732838584263,3.55151691,3583.6,3583.5,0.14358188]